bitfinex/quotes_SOLUSD_20250918
["timestamp","ask_amount","ask_price","bid_price","bid_amount"]
[1758157760603,0.06,245.82,245.8,0.03]
[1758157760804,0.69,245.81,245.8,0.03]
[1758157761199,0.06,245.82,245.8,0.03]
[1758157761607,0.06,245.82,245.81,31.66]
[1758157761812,0.06,245.82,245.81,45.91559401]
[1758157762524,0.06,245.82,245.81,45.25559401]
[1758157763612,0.06,245.82,245.81,48.09335306]
[1758157764103,0.06,245.82,245.81,47.43335306]
[1758157764499,0.06,245.82,245.81,45.75559401]
[1758157765917,0.75,245.82,245.81,32.16]
[1758157766119,3.49221829,245.82,245.81,31.66]
[1758157767121,0.75,245.82,245.81,31.66]
[1758157767322,3.49245909,245.82,245.81,31.66]
[1758157771836,3.49245909,245.82,245.8,0.03]
[1758157772008,0.75,245.82,245.8,0.03]
[1758157772207,0.69,245.81,245.8,0.03]
[1758157772410,0.75,245.82,245.8,0.03]
[1758157773525,0.69,245.81,245.8,0.03]
[1758157774034,5.10992677,245.81,245.8,0.03]
[1758157774409,10.85540993,245.81,245.8,0.03]
[1758157775737,9.17765088,245.81,245.8,0.03]
[1758157775942,11.80202605,245.81,245.8,0.03]
[1758157777329,11.80202605,245.81,245.77,0.03]
[1758157777330,26.0,245.78,245.77,0.03]
[1758157777623,33.99091806,245.78,245.77,0.03]
[1758157777831,38.74959736,245.78,245.77,0.03]
[1758157778016,40.37902482,245.78,245.77,0.03]
[1758157778726,37.75464965,245.78,245.77,0.03]
[1758157778927,69.41464965,245.78,245.77,0.03]
[1758157779718,37.75464965,245.78,245.77,0.03]
[1758157781712,11.06464965,245.78,245.77,0.03]
[1758157782245,11.75464965,245.78,245.77,0.03]
[1758157782537,11.06464965,245.78,245.77,0.03]
[1758157782918,8.32248193,245.78,245.77,0.03]
[1758157783329,11.75464965,245.78,245.77,0.03]
[1758157783637,9.13027448,245.78,245.77,0.03]
[1758157783838,9.01248193,245.78,245.77,0.03]
[1758157784046,11.75464965,245.78,245.77,0.03]
[1758157784232,9.01248193,245.78,245.77,0.03]
[1758157784810,1.62942746,245.78,245.77,0.03]
[1758157785016,1.62942746,245.78,245.77,0.74]
[1758157785242,1.62942746,245.78,245.77,0.03]
[1758157785622,4.25380263,245.78,245.77,0.03]
[1758157786651,2.62437517,245.78,245.77,0.03]
[1758157787468,3.31437517,245.78,245.77,0.03]
[1758157788847,2.62437517,245.78,245.77,0.03]
[1758157789460,3.31437517,245.78,245.77,0.03]
[1758157789822,0.69,245.78,245.77,0.03]
[1758157790325,8.32197073,245.79,245.77,0.03]
[1758157790521,2.62437517,245.78,245.77,0.03]
[1758157791521,9.01197073,245.79,245.77,0.03]
[1758157791730,8.32197073,245.79,245.77,0.03]
[1758157791934,0.69,245.78,245.77,0.03]
[1758157792543,3.31437517,245.78,245.77,0.03]
[1758157793345,6.04806517,245.78,245.77,0.03]
[1758157793640,37.70806517,245.78,245.77,0.03]
[1758157795446,6.04806517,245.78,245.77,0.03]
[1758157796443,37.70806517,245.78,245.77,0.03]
[1758157796952,39.33742626,245.78,245.77,0.03]
[1758157798931,5.05305109,245.78,245.77,0.03]
[1758157799138,4.25373626,245.78,245.77,0.03]
[1758157799336,6.98742626,245.78,245.77,0.03]
[1758157799553,7.64742626,245.78,245.77,0.03]
[1758157800244,4.36305109,245.78,245.77,0.73]
[1758157800453,6.69294143,245.79,245.77,0.03]
[1758157800654,4.06856626,245.79,245.77,0.03]
[1758157801033,6.69294143,245.79,245.77,0.03]
[1758157801231,4.06856626,245.79,245.77,0.03]
[1758157801426,1.6890293,245.8,245.78,0.7]
[1758157801649,0.06,245.8,245.77,0.03]
[1758157801951,0.06,245.8,245.78,0.7]
[1758157802334,0.06,245.8,245.77,0.03]
[1758157802560,0.06,245.8,245.77,0.73]
[1758157802731,7.43276495,245.8,245.77,0.03]
[1758157802932,2.62437517,245.78,245.77,0.03]
[1758157803363,4.25353717,245.78,245.77,0.03]
[1758157803730,1.629162,245.78,245.77,0.03]
[1758157804037,4.93353717,245.78,245.77,0.03]
[1758157804553,9.00221647,245.78,245.77,0.03]
[1758157804751,11.73407619,245.78,245.77,0.03]
[1758157808943,4.36102172,245.78,245.77,0.75]
[1758157809139,0.06,245.8,245.77,0.75]
[1758157809338,0.06,245.8,245.78,0.72]
[1758157811263,0.06,245.8,245.77,0.03]
[1758157811558,0.06,245.8,245.77,0.75]
[1758157812261,0.06,245.8,245.77,0.03]
[1758157812442,0.06,245.8,245.77,0.75]
[1758157814754,0.06,245.8,245.78,0.72]
[1758157816256,0.06,245.8,245.78,3.34437517]
[1758157816652,0.06,245.8,245.79,0.72]
[1758157818946,0.06,245.8,245.77,0.03]
[1758157819180,3.30437517,245.79,245.77,0.03]
[1758157819366,2.62437517,245.79,245.77,0.03]
[1758157819558,3.30437517,245.78,245.77,0.03]
[1758157820270,6.04311655,245.78,245.77,0.03]
[1758157820657,10.11179585,245.78,245.77,0.03]
[1758157825573,11.74095785,245.78,245.77,0.03]
[1758157826271,9.11658268,245.78,245.77,0.03]
[1758157826462,8.43658268,245.78,245.77,0.03]
[1758157826651,4.36790338,245.78,245.77,0.03]
[1758157826852,2.73874138,245.79,245.77,0.75]
[1758157827055,6.80730533,245.79,245.77,0.75]
[1758157827986,2.73874138,245.79,245.78,0.72]
[1758157828277,0.06,245.8,245.78,0.72]
[1758157828484,0.06,245.8,245.78,3.34437517]
[1758157829065,0.06,245.8,245.79,0.72]
[1758157830385,4.80837812,245.8,245.77,0.03]
[1758157830582,4.12837812,245.8,245.77,0.75]
[1758157833202,0.06,245.8,245.77,0.75]
[1758157833367,0.06,245.8,245.78,0.71]
[1758157833883,0.06,245.8,245.79,0.71]
[1758157834578,0.06,245.8,245.77,0.74]
[1758157834783,0.06,245.8,245.78,0.71]
[1758157835682,0.06,245.8,245.79,0.71]
[1758157835893,0.06,245.8,245.79,17.21429232]
[1758157836890,0.06,245.8,245.79,21.28280609]
[1758157837770,0.06,245.8,245.79,20.3364035]
[1758157837968,0.06,245.8,245.79,16.26788973]
[1758157839284,0.06,245.8,245.79,47.88788973]
[1758157841067,0.06,245.8,245.79,48.38788973]
[1758157843087,0.06,245.8,245.79,46.70991715]
[1758157843286,0.06,245.8,245.79,48.38788973]
[1758157843785,0.06,245.8,245.79,47.67788973]
[1758157844196,0.06,245.8,245.79,15.08991715]
[1758157844487,0.06,245.8,245.79,45.49991715]
[1758157844788,0.72,245.8,245.79,31.62]
[1758157845673,0.06,245.8,245.79,31.62]
[1758157848074,0.06,245.8,245.77,13.62559401]
[1758157848595,0.66,245.79,245.78,45.21559401]
[1758157849275,1.73797258,245.8,245.78,45.21559401]
[1758157849478,0.66,245.79,245.78,45.21559401]
[1758157850501,1.67797258,245.79,245.77,0.03]
[1758157850702,5.74665188,245.78,245.77,0.03]
[1758157851197,6.40665188,245.78,245.77,0.03]
[1758157851780,2.33797258,245.78,245.77,0.03]
[1758157852287,1.67797258,245.79,245.77,0.03]
[1758157852598,2.39797258,245.8,245.77,0.03]
[1758157852903,0.66,245.79,245.77,0.03]
[1758157853598,0.06,245.8,245.77,0.03]
[1758157853989,0.72,245.8,245.77,0.03]
[1758157854893,0.06,245.8,245.77,0.03]
[1758157855100,0.06,245.8,245.77,0.74]
[1758157855395,0.06,245.8,245.78,15.98356659]
[1758157855598,0.06,245.8,245.79,31.62]
[1758157856195,0.06,245.8,245.79,33.29797258]
[1758157856608,0.06,245.8,245.79,47.88788973]
[1758157858788,0.06,245.8,245.79,45.49991715]
[1758157859100,0.06,245.8,245.79,47.17788973]
[1758157859283,0.06,245.8,245.79,47.87788973]
[1758157859585,0.06,245.8,245.79,47.17788973]
[1758157859786,0.06,245.8,245.79,45.49991715]
[1758157860003,0.06,245.8,245.78,1.67797258]
[1758157860199,0.72,245.8,245.79,31.62]
[1758157860697,0.72,245.8,245.78,13.59559401]
[1758157860903,0.72,245.8,245.79,31.62]
[1758157862091,0.06,245.8,245.79,31.62]
[1758157863089,0.06,245.8,245.79,47.55356659]
[1758157863501,0.06,245.8,245.79,46.89356659]
[1758157864090,0.06,245.8,245.79,45.21559401]
[1758157864091,0.75,245.8,245.79,45.21559401]
[1758157864296,0.06,245.8,245.79,45.21559401]
[1758157864606,0.75,245.8,245.79,45.21559401]
[1758157864793,0.06,245.8,245.79,45.21559401]
[1758157867905,0.06,245.8,245.79,46.89356659]
[1758157869105,0.06,245.8,245.79,45.21559401]
[1758157869408,0.06,245.8,245.79,46.89356659]
[1758157871105,0.06,245.8,245.79,45.21559401]
[1758157871307,0.06,245.8,245.79,46.89356659]
[1758157873297,0.06,245.8,245.79,47.83788973]
[1758157876618,0.06,245.8,245.79,49.46599075]
[1758157879195,0.06,245.82,245.81,13.59559401]
[1758157879511,0.06,245.82,245.81,47.15788973]
[1758157879814,0.06,245.82,245.81,16.21788973]
[1758157880025,0.06,245.82,245.81,47.81788973]
[1758157880326,0.06,245.82,245.81,126.71788973]
[1758157881005,0.06,245.82,245.81,95.11788973]
[1758157881209,0.06,245.82,245.81,126.71788973]
[1758157882029,0.06,245.85,245.84,39.59559401]
[1758157882225,0.06,245.85,245.84,73.15788973]
[1758157882531,0.06,245.85,245.84,73.81788973]
[1758157883108,0.06,245.85,245.84,79.51341203]
[1758157883309,0.06,245.85,245.84,77.88557603]
[1758157883508,0.06,245.85,245.84,77.22557603]
[1758157884096,0.06,245.85,245.84,45.62557603]
[1758157884302,0.06,245.85,245.84,77.88557603]
[1758157885112,0.06,245.85,245.84,82.29614686]
[1758157886301,0.69,245.94,245.85,13.87991715]
[1758157886618,4.06467994,246.03,245.93,13.59559401]
[1758157886928,0.69,245.98,245.95,13.59559401]
[1758157887226,0.69,245.97,245.96,31.58]
[1758157888407,0.69,245.97,245.96,33.25797258]
[1758157889228,0.69,245.97,245.96,46.85356659]
[1758157889607,0.69,245.97,245.96,45.17559401]
[1758157889814,0.69,245.97,245.96,46.85356659]
[1758157890825,0.69,245.97,245.96,45.17559401]
[1758157891213,0.69,245.97,245.96,46.85356659]
[1758157891627,0.69,245.97,245.96,45.17559401]
[1758157891809,0.69,245.97,245.96,46.85356659]
[1758157895524,0.69,245.97,245.96,45.17559401]
[1758157895832,0.75,245.97,245.96,46.85356659]
[1758157896229,0.75,245.97,245.96,45.17559401]
[1758157896732,0.75,245.97,245.96,31.58]
[1758157898332,0.75,245.97,245.95,12.11045942]
[1758157898528,0.75,245.97,245.96,31.56]
[1758157898832,0.75,245.97,245.93,92.77991715]
[1758157898833,0.75,245.97,245.95,2.6189275]
[1758157899040,0.75,245.97,245.96,31.56]
[1758157900021,0.75,245.97,245.95,2.6189275]
[1758157900221,0.75,245.97,245.96,31.56]
[1758157902923,0.75,245.97,245.96,34.1789275]
[1758157903736,0.75,245.97,245.96,31.56]
[1758157903915,0.06,245.97,245.96,31.56]
[1758157904319,0.06,245.97,245.96,45.15559401]
[1758157904940,0.78,245.97,245.96,45.15559401]
[1758157905239,0.78,245.97,245.96,47.77452151]
[1758157905240,0.06,245.97,245.96,47.77452151]
[1758157905938,0.06,245.97,245.96,45.15559401]
[1758157906245,0.06,245.97,245.96,47.77452151]
[1758157906946,0.06,245.97,245.96,48.49452151]
[1758157915028,0.06,245.97,245.96,16.21452151]
[1758157915234,0.06,245.97,245.96,126.65452151]
[1758157915546,0.78,245.97,245.96,45.13559401]
[1758157916835,0.06,245.97,245.96,48.03884465]
[1758157917238,0.06,245.97,245.96,45.41991715]
[1758157917440,0.06,245.97,245.96,48.03884465]
[1758157920660,0.06,245.97,245.96,126.93884465]
[1758157921164,0.06,245.97,245.96,127.64884465]
[1758157921355,0.06,245.97,245.96,48.74884465]
[1758157922147,0.06,245.97,245.96,74.03884465]
[1758157922638,0.06,245.97,245.96,71.41991715]
[1758157922859,0.06,245.97,245.96,74.03884465]
[1758157923577,0.06,245.97,245.96,71.41991715]
[1758157923745,0.06,245.97,245.96,74.03884465]
[1758157925070,0.78,245.97,245.96,13.59559401]
[1758157925261,0.78,245.97,245.96,45.13559401]
[1758157925434,0.78,245.97,245.96,13.59559401]
[1758157925638,0.78,245.97,245.94,12.24153139]
[1758157925936,0.72,245.96,245.95,45.13559401]
[1758157930159,0.06,245.97,245.96,13.59559401]
[1758157930351,0.06,245.97,245.96,16.21452151]
[1758157934354,0.06,245.97,245.96,16.49884465]
[1758157935152,0.06,245.97,245.96,17.16884465]
[1758157935462,0.06,245.97,245.96,16.49884465]
[1758157936166,0.06,245.97,245.96,13.87991715]
[1758157936360,0.06,245.97,245.96,16.49884465]
[1758157936664,0.06,245.97,245.96,95.39884465]
[1758157937641,0.78,245.97,245.96,95.39884465]
[1758157938854,0.78,245.97,245.96,16.49884465]
[1758157939357,0.06,245.97,245.96,16.49884465]
[1758157940172,0.78,245.97,245.96,16.49884465]
[1758157940361,0.06,245.97,245.96,16.49884465]
[1758157941271,0.06,245.97,245.96,17.16884465]
[1758157943351,0.06,245.97,245.96,16.49884465]
[1758157943669,0.78,245.97,245.96,16.49884465]
[1758157943981,0.78,245.97,245.96,13.87991715]
[1758157944373,0.78,245.97,245.96,16.49884465]
[1758157944974,0.06,245.97,245.96,16.49884465]
[1758157948364,0.06,245.97,245.96,95.39884465]
[1758157950582,0.06,245.97,245.96,17.16884465]
[1758157952462,0.06,246.0,245.98,13.59559401]
[1758157952665,0.06,246.0,245.99,47.73452151]
[1758157953761,0.06,246.0,245.99,51.79972741]
[1758157954680,0.06,246.0,245.99,52.50972741]
[1758157955661,0.06,246.0,245.99,51.79972741]
[1758157956987,0.06,246.0,245.99,131.40972741]
[1758157957191,0.06,246.0,245.99,130.69972741]
[1758157957368,0.76,246.0,245.99,130.69972741]
[1758157957569,0.06,246.0,245.99,130.69972741]
[1758157959289,0.06,246.0,245.99,130.67972741]
[1758157959893,0.06,246.0,245.99,129.73586152]
[1758157962289,0.06,246.0,245.99,130.44586152]
[1758157962895,0.06,246.0,245.99,129.73586152]
[1758157965188,0.06,246.0,245.99,128.06079991]
[1758157965369,0.06,246.0,245.99,129.73586152]
[1758157967694,0.06,246.0,245.99,51.83018466]
[1758157968077,0.06,246.0,245.99,130.73018466]
[1758157968703,0.06,246.0,245.99,130.02018466]
[1758157972499,0.06,246.0,245.99,130.73018466]
[1758157972677,0.06,246.0,245.99,137.4304311]
[1758157972878,0.06,246.0,245.99,130.02018466]
[1758157973587,0.06,246.0,245.99,130.73018466]
[1758157975138,0.06,246.0,245.99,130.02018466]
[1758157975780,0.76,246.0,245.99,49.42512305]
[1758157976106,0.06,246.0,245.99,51.60018466]
[1758157977697,0.06,246.0,245.99,20.12018466]
[1758157977891,0.06,246.0,245.99,51.60018466]
[1758157981423,0.77,246.0,245.99,14.09559401]
[1758157981604,0.77,246.0,245.99,45.57559401]
[1758157982110,0.77,246.0,245.97,0.03]
[1758157982111,2.44506161,246.0,245.97,0.03]
[1758157982314,0.77,246.0,245.98,31.48]
[1758157982497,2.38506161,245.99,245.98,31.48]
[1758157982696,6.45026751,245.99,245.98,31.48]
[1758157983700,4.7752059,245.99,245.98,31.48]
[1758157983904,6.45026751,245.99,245.98,31.48]
[1758157984994,9.18792687,245.99,245.97,0.03]
[1758157985214,4.41272097,245.98,245.97,0.03]
[1758157985717,5.09272097,245.98,245.97,0.03]
[1758157987522,3.41765936,245.98,245.97,0.03]
[1758157987696,5.09272097,245.98,245.97,0.03]
[1758157988224,7.34388416,245.98,245.97,0.03]
[1758157990229,5.09272097,245.98,245.97,0.03]
[1758157990817,26.0,245.95,245.94,0.03]
[1758157991000,30.41272097,245.95,245.94,0.03]
[1758157991206,31.09272097,245.95,245.94,0.03]
[1758157991604,32.72102083,245.95,245.94,0.03]
[1758157992528,36.78688787,245.95,245.94,0.03]
[1758157992907,46.95155548,245.95,245.86,0.03]
[1758157993120,2.30829986,245.95,245.91,1.67506161]
[1758157993426,1.62829986,245.95,245.93,1.67506161]
[1758157993612,1.62829986,245.95,245.92,0.72]
[1758157993939,4.06561299,245.97,245.88,45.07559401]
[1758157994140,4.06561299,245.97,245.92,1.67506161]
[1758157994141,4.74561299,245.97,245.92,1.67506161]
[1758157994308,0.68,245.96,245.92,1.67506161]
[1758157994507,4.74574954,245.96,245.92,2.39506161]
[1758157994712,0.68,245.95,245.92,1.67506161]
[1758157995034,0.68,245.94,245.91,1.67506161]
[1758157995208,0.68,245.93,245.9,1.67506161]
[1758157995414,0.68,245.92,245.89,1.67506161]
[1758157996127,5.74081115,245.96,245.89,1.67506161]
[1758157996128,0.68,245.95,245.89,1.67506161]
[1758157996329,4.06603236,245.94,245.88,45.79559401]
[1758157996726,4.06603236,245.94,245.89,1.67506161]
[1758157996920,0.68,245.93,245.89,2.39506161]
[1758157997828,4.06603236,245.94,245.91,1.67506161]
[1758157998325,0.68,245.95,245.92,1.67506161]
[1758157998523,4.06581117,245.96,245.92,1.67506161]
[1758157998524,4.06581117,245.96,245.92,2.39506161]
[1758157998719,4.06581117,245.96,245.92,0.72]
[1758157998912,4.74581117,245.96,245.93,1.67506161]
[1758157999330,4.74581117,245.96,245.92,0.72]
[1758157999523,4.74537116,245.98,245.92,2.39506161]
[1758157999931,2.35506161,245.97,245.88,45.79559401]
[1758158000239,1.67506161,245.92,245.86,78.93]
[1758158000534,0.68,245.96,245.86,0.03]
[1758158000535,1.67506161,245.9,245.86,0.03]
[1758158000832,0.68,245.89,245.86,0.03]
[1758158001234,1.67506161,245.87,245.86,0.03]
[1758158001537,0.68,245.89,245.86,0.03]
[1758158001835,12.21374045,245.91,245.88,1.67506161]
[1758158002031,12.21374045,245.91,245.87,13.59559401]
[1758158002032,12.21374045,245.91,245.9,1.67506161]
[1758158002236,0.68,245.95,245.89,2.39506161]
[1758158002534,26.68,245.95,245.89,2.39506161]
[1758158002739,4.06606993,245.94,245.89,2.39506161]
[1758158003036,4.74606993,245.94,245.89,0.72]
[1758158004817,0.68,245.93,245.89,0.72]
[1758158005041,0.68,245.93,245.88,0.72]
[1758158005334,0.06,245.94,245.89,2.39506161]
[1758158005543,0.06,245.94,245.9,0.72]
[1758158007531,0.06,245.94,245.91,0.72]
[1758158007740,0.06,245.94,245.91,2.39506161]
[1758158008042,0.06,245.94,245.93,1.67506161]
[1758158008419,0.06,245.94,245.93,2.39506161]
[1758158009626,0.06,245.94,245.93,15.99065562]
[1758158009849,0.06,245.94,245.93,14.31559401]
[1758158010154,0.06,245.94,245.92,31.48]
[1758158010521,0.68,245.93,245.92,31.48]
[1758158010931,0.68,245.93,245.85,0.28432314]
[1758158011134,0.68,245.93,245.87,32.2]
[1758158011333,1.73506161,245.94,245.87,32.2]
[1758158011334,5.80112459,245.94,245.87,32.2]
[1758158011533,0.68,245.93,245.87,32.2]
[1758158012145,2.35506161,245.93,245.87,32.2]
[1758158013054,6.42130053,245.93,245.87,32.2]
[1758158013546,0.06,245.94,245.88,2.36506161]
[1758158013947,0.06,245.94,245.88,1.67506161]
[1758158014147,0.06,245.94,245.89,0.69]
[1758158014649,0.06,245.94,245.89,2.36506161]
[1758158014841,0.06,245.94,245.9,0.69]
[1758158015241,0.06,245.94,245.91,0.69]
[1758158015442,0.66,245.93,245.88,13.59559401]
[1758158015641,2.33506161,245.93,245.88,14.28559401]
[1758158016031,2.33506161,245.93,245.89,0.69]
[1758158016532,0.66,245.93,245.89,0.69]
[1758158017730,5.80113098,245.94,245.89,0.69]
[1758158017946,6.46113098,245.94,245.89,0.69]
[1758158018258,0.66,245.93,245.88,45.07559401]
[1758158018433,2.33506161,245.93,245.88,45.76559401]
[1758158018634,2.33506161,245.93,245.89,0.69]
[1758158019342,0.66,245.93,245.89,0.69]
[1758158019543,5.80113098,245.94,245.89,0.69]
[1758158019737,7.40642076,245.94,245.89,0.69]
[1758158020458,6.74642076,245.94,245.89,0.69]
[1758158020660,0.66,245.93,245.88,45.07559401]
[1758158020835,0.66,245.93,245.89,0.69]
[1758158022246,4.72621846,245.93,245.88,45.07559401]
[1758158022555,4.72621846,245.93,245.89,0.69]
[1758158022758,6.68656985,245.93,245.88,45.07559401]
[1758158022954,4.06621846,245.93,245.89,0.69]
[1758158023136,2.68035139,245.94,245.89,32.15]
[1758158023336,3.34035139,245.94,245.89,32.15]
[1758158023544,6.74642282,245.94,245.89,32.15]
[1758158023831,0.66,245.93,245.89,32.15]
[1758158024040,0.66,245.93,245.89,31.46]
[1758158024360,2.62035139,245.9,245.87,0.03]
[1758158024536,2.62035139,245.88,245.87,0.03]
[1758158025041,3.28035139,245.88,245.87,0.03]
[1758158025642,6.00984629,245.88,245.87,0.03]
[1758158025944,3.28035139,245.88,245.87,0.03]
[1758158026351,6.00984629,245.88,245.87,0.03]
[1758158032367,3.28035139,245.88,245.87,0.03]
[1758158033570,8.91452082,245.88,245.87,0.03]
[1758158034955,6.29416943,245.88,245.87,0.03]
[1758158038369,3.3894949,245.88,245.87,0.03]
[1758158038550,6.79648133,245.89,245.87,0.72]
[1758158038754,4.06698643,245.89,245.87,0.72]
[1758158039091,4.06698643,245.89,245.88,0.69]
[1758158039578,4.0665284,245.91,245.88,0.69]
[1758158039775,2.7294949,245.92,245.89,0.69]
[1758158039969,26.06,245.94,245.91,2.62035139]
[1758158039970,0.06,245.94,245.91,2.62035139]
[1758158040170,0.06,245.94,245.88,3.31035139]
[1758158040371,2.62035139,245.92,245.87,0.03]
[1758158040674,2.62035139,245.91,245.87,0.72]
[1758158041056,2.62035139,245.91,245.87,0.03]
[1758158041257,2.62035139,245.91,245.88,0.69]
[1758158041662,6.68693621,245.91,245.88,0.69]
[1758158041864,4.06658482,245.91,245.88,0.69]
[1758158042074,6.68693621,245.91,245.88,0.69]
[1758158043083,7.40693621,245.91,245.87,0.03]
[1758158043462,6.68693621,245.91,245.88,0.7]
[1758158043781,7.40693621,245.91,245.87,0.03]
[1758158044681,7.40693621,245.91,245.87,0.73]
[1758158045977,6.68693621,245.91,245.87,0.73]
[1758158046587,7.40693621,245.91,245.87,0.73]
[1758158048096,2.62035139,245.88,245.87,0.03]
[1758158048659,6.68737595,245.88,245.87,0.03]
[1758158051969,4.06702456,245.88,245.87,0.03]
[1758158054166,4.78702456,245.88,245.87,0.03]
[1758158054490,4.06702456,245.88,245.87,0.03]
[1758158056770,4.78702456,245.88,245.87,0.03]
[1758158057177,6.68737595,245.88,245.87,0.03]
[1758158059086,4.06702456,245.88,245.87,0.03]
[1758158059884,4.06702456,245.88,245.87,0.73]
[1758158060783,2.73214074,245.9,245.87,0.73]
[1758158060997,0.06,245.94,245.89,2.62035139]
[1758158061169,0.06,245.94,245.9,0.7]
[1758158061371,0.06,245.94,245.91,2.62035139]
[1758158061578,0.06,245.94,245.92,0.7]
[1758158061780,0.06,245.94,245.93,2.62035139]
[1758158062179,0.06,245.94,245.93,3.32035139]
[1758158062379,0.06,245.94,245.93,0.7]
[1758158075707,0.06,245.94,245.9,31.44]
[1758158076008,0.06,245.94,245.91,3.32035139]
[1758158076809,0.06,245.94,245.92,0.7]
[1758158080686,0.06,245.94,245.93,2.37643622]
[1758158080889,0.06,245.94,245.93,1.67643622]
[1758158082505,0.06,245.94,245.93,2.37643622]
[1758158083589,0.06,245.94,245.93,1.67643622]
[1758158084083,0.06,245.94,245.93,2.37643622]
[1758158085305,0.06,245.94,245.91,31.44]
[1758158085502,0.06,245.94,245.93,1.67643622]
[1758158085704,0.06,245.94,245.92,0.7]
[1758158085705,0.06,245.94,245.92,32.14]
[1758158085901,0.06,245.94,245.93,1.67643622]
[1758158086205,0.06,245.94,245.92,33.11643622]
[1758158086409,4.81607181,245.94,245.92,1.67643622]
[1758158086814,4.12607181,245.94,245.92,1.67643622]
[1758158087402,4.12607181,245.94,245.93,1.67643622]
[1758158088517,0.06,245.94,245.93,1.67643622]
[1758158090811,4.12607215,245.94,245.91,32.14]
[1758158091017,4.12607215,245.94,245.92,2.37643622]
[1758158091518,4.12607215,245.94,245.93,0.03]
[1758158094423,0.06,245.94,245.93,0.03]
[1758158094635,0.06,245.94,245.93,1.70643622]
[1758158094817,0.06,245.94,245.93,2.40643622]
[1758158096834,0.06,245.94,245.93,33.82643622]
[1758158101020,0.06,245.94,245.93,33.12643622]
[1758158102118,0.06,245.94,245.93,31.45]
[1758158102513,0.71,245.94,245.93,0.03]
[1758158102729,7.37962724,245.94,245.93,0.03]
[1758158102920,10.79808789,245.94,245.93,0.03]
[1758158103129,7.37962724,245.94,245.93,0.03]
[1758158103320,12.42632146,245.94,245.93,0.03]
[1758158103707,12.7106446,245.94,245.93,0.03]
[1758158104722,11.03420838,245.94,245.93,0.03]
[1758158104926,12.7106446,245.94,245.93,0.03]
[1758158105826,2.79875466,245.94,245.93,2.38643622]
[1758158106121,0.06,245.94,245.93,2.38643622]
[1758158106502,2.79875466,245.94,245.93,2.38643622]
[1758158106816,0.06,245.94,245.93,2.38643622]
[1758158107016,0.06,245.94,245.93,0.03]
[1758158107224,2.79875466,245.94,245.93,0.03]
[1758158107422,0.06,245.94,245.93,0.03]
[1758158107623,2.79875466,245.94,245.93,0.03]
[1758158109227,3.51875466,245.94,245.93,0.03]
[1758158112134,5.47951402,245.94,245.93,0.03]
[1758158112823,7.73440645,245.94,245.93,0.03]
[1758158114147,5.05364709,245.94,245.93,0.03]
[1758158114316,2.79875466,245.94,245.93,0.03]
[1758158115830,7.7337383,245.94,245.93,0.03]
[1758158116031,7.7337383,245.94,245.9,0.03]
[1758158116032,26.0,245.91,245.9,0.03]
[1758158116222,32.66941516,245.91,245.9,0.03]
[1758158116533,33.38855201,245.91,245.9,0.03]
[1758158116715,33.34054822,245.91,245.9,0.03]
[1758158116916,31.08718709,245.91,245.9,0.03]
[1758158117728,35.15371549,245.91,245.9,0.03]